{"text_format":"3","workbook":"xlsx","n_sheets":5,"sheets":["Приладна дошка","Витрати й дохід","Бюджетний звіт","Списки даних","Зведена таблиця категорій"],"not_rendered":{"charts":3,"defined_names":18,"pivot_tables":2},"read":"whole","date_system":"1900"}

{"sheet":"Приладна дошка","index":0,"n_rows":21,"n_cols":16,"rows_kept":21,"merged":[[5,2,5,3],[8,9,8,10],[9,9,9,10],[10,9,10,10]]}
[]
[null,null,"Двотижневий домашній бюджет",{"$nulls":12},"ПРИЛАДНА ДОШКА"]
[]
[]
[]
[null,null,{"$f":"CHOOSE(Номер_місяця,\"Січень\",\"Лютий\",\"Березень\",\"Квітень\",\"Травень\",\"Червень\",\"Липень\",\"Серпень\",\"Вересень\",\"Жовтень\",\"Листопад\",\"Грудень\")","v":"Серпень"},null,8,{"$nulls":5},2012]
[]
[]
[null,null,"ПІДСУМКИ ЗА МІСЯЦЬ","Monthly Totals",{"$nulls":5},"ПІДСУМКИ ЗА РІК",null,"Annual Totals"]
[null,null,"ДОХІД","Витрати",{"$f":"SUMIF(Витрати[ДАТА],\"<=\"&Дата_закінчення_місяця,Витрати[СУМА])-SUMIF(Витрати[ДАТА],\"<\"&Дата_початку_місяця,Витрати[СУМА])","v":{"v":0,"d":"0₴"}},{"$nulls":4},"ДОХІД",null,"Витрати",{"$f":"SUM(IF(YEAR(Витрати[ДАТА])=K6,Витрати[СУМА]))","v":{"v":1225,"d":"1,225₴"}}]
[null,null,"ВИТРАТИ","дохід",{"$f":"SUMIF(дохід[ДАТА],\"<=\"&Дата_закінчення_місяця,дохід[СУМА])-SUMIF(дохід[ДАТА],\"<\"&Дата_початку_місяця,дохід[СУМА])","v":{"v":0,"d":"0₴"}},{"$nulls":4},"ВИТРАТИ",null,"дохід",{"$f":"SUM(IF(YEAR(дохід[ДАТА])=K6,дохід[СУМА]))","v":{"v":0,"d":"0₴"}}]
[]
[]
[]
[]
[]
[{"$nulls":3},"СІЧЕНЬ","ЛЮТИЙ","БЕРЕЗЕНЬ","КВІТЕНЬ","ТРАВЕНЬ","ЧЕРВЕНЬ","ЛИПЕНЬ","СЕРПЕНЬ","ВЕРЕСЕНЬ","ЖОВТЕНЬ","ЛИСТОПАД","ГРУДЕНЬ"]
[null,null,"Дохід 1-15",{"$f":"SUMIFS(дохід[СУМА],дохід[ОПИС],\"<=\"&Дата_середина,дохід[ОПИС],\">=\"&Дата_початок)","v":{"v":0,"d":"0.00₴"}},{"$f":"SUMIFS(дохід[СУМА],дохід[ОПИС],\"<=\"&Дата_середина,дохід[ОПИС],\">=\"&Дата_початок)","v":{"v":0,"d":"0.00₴"}},{"$f":"SUMIFS(дохід[СУМА],дохід[ОПИС],\"<=\"&Дата_середина,дохід[ОПИС],\">=\"&Дата_початок)","v":{"v":0,"d":"0.00₴"}},{"$f":"SUMIFS(дохід[СУМА],дохід[ОПИС],\"<=\"&Дата_середина,дохід[ОПИС],\">=\"&Дата_початок)","v":{"v":0,"d":"0.00₴"}},{"$f":"SUMIFS(дохід[СУМА],дохід[ОПИС],\"<=\"&Дата_середина,дохід[ОПИС],\">=\"&Дата_початок)","v":{"v":0,"d":"0.00₴"}},{"$f":"SUMIFS(дохід[СУМА],дохід[ОПИС],\"<=\"&Дата_середина,дохід[ОПИС],\">=\"&Дата_початок)","v":{"v":0,"d":"0.00₴"}},{"$f":"SUMIFS(дохід[СУМА],дохід[ОПИС],\"<=\"&Дата_середина,дохід[ОПИС],\">=\"&Дата_початок)","v":{"v":0,"d":"0.00₴"}},{"$f":"SUMIFS(дохід[СУМА],дохід[ОПИС],\"<=\"&Дата_середина,дохід[ОПИС],\">=\"&Дата_початок)","v":{"v":0,"d":"0.00₴"}},{"$f":"SUMIFS(дохід[СУМА],дохід[ОПИС],\"<=\"&Дата_середина,дохід[ОПИС],\">=\"&Дата_початок)","v":{"v":0,"d":"0.00₴"}},{"$f":"SUMIFS(дохід[СУМА],дохід[ОПИС],\"<=\"&Дата_середина,дохід[ОПИС],\">=\"&Дата_початок)","v":{"v":0,"d":"0.00₴"}},{"$f":"SUMIFS(дохід[СУМА],дохід[ОПИС],\"<=\"&Дата_середина,дохід[ОПИС],\">=\"&Дата_початок)","v":{"v":0,"d":"0.00₴"}},{"$f":"SUMIFS(дохід[СУМА],дохід[ОПИС],\"<=\"&Дата_середина,дохід[ОПИС],\">=\"&Дата_початок)","v":{"v":0,"d":"0.00₴"}}]
[null,null,"Дохід 16-НКМ",{"$f":"SUMIFS(дохід[СУМА],дохід[ОПИС],\"<=\"&Дата_кінець,дохід[ОПИС],\">=\"&Дата_середина+1)","v":{"v":0,"d":"0.00₴"}},{"$f":"SUMIFS(дохід[СУМА],дохід[ОПИС],\"<=\"&Дата_кінець,дохід[ОПИС],\">=\"&Дата_середина+1)","v":{"v":0,"d":"0.00₴"}},{"$f":"SUMIFS(дохід[СУМА],дохід[ОПИС],\"<=\"&Дата_кінець,дохід[ОПИС],\">=\"&Дата_середина+1)","v":{"v":0,"d":"0.00₴"}},{"$f":"SUMIFS(дохід[СУМА],дохід[ОПИС],\"<=\"&Дата_кінець,дохід[ОПИС],\">=\"&Дата_середина+1)","v":{"v":0,"d":"0.00₴"}},{"$f":"SUMIFS(дохід[СУМА],дохід[ОПИС],\"<=\"&Дата_кінець,дохід[ОПИС],\">=\"&Дата_середина+1)","v":{"v":0,"d":"0.00₴"}},{"$f":"SUMIFS(дохід[СУМА],дохід[ОПИС],\"<=\"&Дата_кінець,дохід[ОПИС],\">=\"&Дата_середина+1)","v":{"v":0,"d":"0.00₴"}},{"$f":"SUMIFS(дохід[СУМА],дохід[ОПИС],\"<=\"&Дата_кінець,дохід[ОПИС],\">=\"&Дата_середина+1)","v":{"v":0,"d":"0.00₴"}},{"$f":"SUMIFS(дохід[СУМА],дохід[ОПИС],\"<=\"&Дата_кінець,дохід[ОПИС],\">=\"&Дата_середина+1)","v":{"v":0,"d":"0.00₴"}},{"$f":"SUMIFS(дохід[СУМА],дохід[ОПИС],\"<=\"&Дата_кінець,дохід[ОПИС],\">=\"&Дата_середина+1)","v":{"v":0,"d":"0.00₴"}},{"$f":"SUMIFS(дохід[СУМА],дохід[ОПИС],\"<=\"&Дата_кінець,дохід[ОПИС],\">=\"&Дата_середина+1)","v":{"v":0,"d":"0.00₴"}},{"$f":"SUMIFS(дохід[СУМА],дохід[ОПИС],\"<=\"&Дата_кінець,дохід[ОПИС],\">=\"&Дата_середина+1)","v":{"v":0,"d":"0.00₴"}},{"$f":"SUMIFS(дохід[СУМА],дохід[ОПИС],\"<=\"&Дата_кінець,дохід[ОПИС],\">=\"&Дата_середина+1)","v":{"v":0,"d":"0.00₴"}}]
[null,null,"Витрати 1-15",{"$f":"SUMIFS(Витрати[СУМА],Витрати[ДАТА],\"<=\"&Дата_середина,Витрати[ДАТА],\">=\"&Дата_початок)","v":{"v":0,"d":"0.00₴"}},{"$f":"SUMIFS(Витрати[СУМА],Витрати[ДАТА],\"<=\"&Дата_кінець,Витрати[ДАТА],\">=\"&Дата_початок)","v":{"v":0,"d":"0.00₴"}},{"$f":"SUMIFS(Витрати[СУМА],Витрати[ДАТА],\"<=\"&Дата_кінець,Витрати[ДАТА],\">=\"&Дата_початок)","v":{"v":0,"d":"0.00₴"}},{"$f":"SUMIFS(Витрати[СУМА],Витрати[ДАТА],\"<=\"&Дата_кінець,Витрати[ДАТА],\">=\"&Дата_початок)","v":{"v":0,"d":"0.00₴"}},{"$f":"SUMIFS(Витрати[СУМА],Витрати[ДАТА],\"<=\"&Дата_кінець,Витрати[ДАТА],\">=\"&Дата_початок)","v":{"v":0,"d":"0.00₴"}},{"$f":"SUMIFS(Витрати[СУМА],Витрати[ДАТА],\"<=\"&Дата_кінець,Витрати[ДАТА],\">=\"&Дата_початок)","v":{"v":0,"d":"0.00₴"}},{"$f":"SUMIFS(Витрати[СУМА],Витрати[ДАТА],\"<=\"&Дата_кінець,Витрати[ДАТА],\">=\"&Дата_початок)","v":{"v":0,"d":"0.00₴"}},{"$f":"SUMIFS(Витрати[СУМА],Витрати[ДАТА],\"<=\"&Дата_кінець,Витрати[ДАТА],\">=\"&Дата_початок)","v":{"v":0,"d":"0.00₴"}},{"$f":"SUMIFS(Витрати[СУМА],Витрати[ДАТА],\"<=\"&Дата_кінець,Витрати[ДАТА],\">=\"&Дата_початок)","v":{"v":0,"d":"0.00₴"}},{"$f":"SUMIFS(Витрати[СУМА],Витрати[ДАТА],\"<=\"&Дата_кінець,Витрати[ДАТА],\">=\"&Дата_початок)","v":{"v":0,"d":"0.00₴"}},{"$f":"SUMIFS(Витрати[СУМА],Витрати[ДАТА],\"<=\"&Дата_кінець,Витрати[ДАТА],\">=\"&Дата_початок)","v":{"v":1225,"d":"1,225.00₴"}},{"$f":"SUMIFS(Витрати[СУМА],Витрати[ДАТА],\"<=\"&Дата_кінець,Витрати[ДАТА],\">=\"&Дата_початок)","v":{"v":6125,"d":"6,125.00₴"}}]
[null,null,"Витрати 16-НКМ",{"$f":"SUMIFS(Витрати[СУМА],Витрати[ДАТА],\"<=\"&Дата_кінець,Витрати[ДАТА],\">=\"&Дата_середина+1)","v":{"v":0,"d":"0.00₴"}},{"$f":"SUMIFS(Витрати[СУМА],Витрати[ДАТА],\"<=\"&Дата_кінець,Витрати[ДАТА],\">=\"&Дата_середина+1)","v":{"v":0,"d":"0.00₴"}},{"$f":"SUMIFS(Витрати[СУМА],Витрати[ДАТА],\"<=\"&Дата_кінець,Витрати[ДАТА],\">=\"&Дата_середина+1)","v":{"v":0,"d":"0.00₴"}},{"$f":"SUMIFS(Витрати[СУМА],Витрати[ДАТА],\"<=\"&Дата_кінець,Витрати[ДАТА],\">=\"&Дата_середина+1)","v":{"v":0,"d":"0.00₴"}},{"$f":"SUMIFS(Витрати[СУМА],Витрати[ДАТА],\"<=\"&Дата_кінець,Витрати[ДАТА],\">=\"&Дата_середина+1)","v":{"v":0,"d":"0.00₴"}},{"$f":"SUMIFS(Витрати[СУМА],Витрати[ДАТА],\"<=\"&Дата_кінець,Витрати[ДАТА],\">=\"&Дата_середина+1)","v":{"v":0,"d":"0.00₴"}},{"$f":"SUMIFS(Витрати[СУМА],Витрати[ДАТА],\"<=\"&Дата_кінець,Витрати[ДАТА],\">=\"&Дата_середина+1)","v":{"v":0,"d":"0.00₴"}},{"$f":"SUMIFS(Витрати[СУМА],Витрати[ДАТА],\"<=\"&Дата_кінець,Витрати[ДАТА],\">=\"&Дата_середина+1)","v":{"v":0,"d":"0.00₴"}},{"$f":"SUMIFS(Витрати[СУМА],Витрати[ДАТА],\"<=\"&Дата_кінець,Витрати[ДАТА],\">=\"&Дата_середина+1)","v":{"v":0,"d":"0.00₴"}},{"$f":"SUMIFS(Витрати[СУМА],Витрати[ДАТА],\"<=\"&Дата_кінець,Витрати[ДАТА],\">=\"&Дата_середина+1)","v":{"v":0,"d":"0.00₴"}},{"$f":"SUMIFS(Витрати[СУМА],Витрати[ДАТА],\"<=\"&Дата_кінець,Витрати[ДАТА],\">=\"&Дата_середина+1)","v":{"v":100,"d":"100.00₴"}},{"$f":"SUMIFS(Витрати[СУМА],Витрати[ДАТА],\"<=\"&Дата_кінець,Витрати[ДАТА],\">=\"&Дата_середина+1)","v":{"v":775,"d":"775.00₴"}}]

{"sheet":"Витрати й дохід","index":1,"n_rows":40,"n_cols":10,"rows_kept":40}
[]
[null,null,"Двотижневий домашній бюджет",{"$nulls":6},"ВИТРАТИ Й ДОХІД"]
[]
[]
[]
[null,null,"ДОХІД",{"$nulls":3},"ВИТРАТИ"]
[]
[null,null,"ДАТА","ОПИС","СУМА",null,"ДАТА","КАТЕГОРІЯ","ОПИС","СУМА"]
[null,null,{"$f":"NOW()-14","v":"2013-02-06T12:09:43.800"},"Зарплата Макара",{"v":1300,"d":"1,300.00₴"},null,{"$f":"NOW()-7","v":"2013-02-13T12:09:43.800"},"Домашнє господарство","Іпотека",{"v":1000,"d":"1,000.00₴"}]
[null,null,{"$f":"NOW()-14","v":"2013-02-06T12:09:43.800"},"Зарплата Олени",{"v":1300,"d":"1,300.00₴"},null,{"$f":"NOW()-7","v":"2013-02-13T12:09:43.800"},"Домашнє господарство","Електроенергія",{"v":100,"d":"100.00₴"}]
[null,null,{"$f":"NOW()-28","v":"2013-01-23T12:09:43.800"},"Зарплата Макара",{"v":1500,"d":"1,500.00₴"},null,"2013-02-13T12:09:43.800","Домашнє господарство","Водопостачання та каналізація",{"v":50,"d":"50.00₴"}]
[null,null,"2013-01-23T12:09:43.800","Зарплата Олени",{"v":1600,"d":"1,600.00₴"},null,"2013-02-13T12:09:43.800","Домашнє господарство","Сміття",{"v":25,"d":"25.00₴"}]
[null,null,{"$f":"NOW()-42","v":"2013-01-09T12:09:43.800"},"Зарплата Макара",{"v":1300,"d":"1,300.00₴"},null,"2013-02-13T12:09:43.800","Домашнє господарство","Мобільний телефон",{"v":100,"d":"100.00₴"}]
[null,null,"2013-01-09T12:09:43.800","Зарплата Олени",{"v":1300,"d":"1,300.00₴"},null,"2013-02-13T12:09:43.800","Домашнє господарство","Домашній телефон",{"v":30,"d":"30.00₴"}]
[null,null,{"$f":"NOW()-56","v":"2012-12-26T12:09:43.800"},"Зарплата Макара",{"v":1500,"d":"1,500.00₴"},null,"2013-02-13T12:09:43.800","Домашнє господарство","Інтернет",{"v":50,"d":"50.00₴"}]
[null,null,"2012-12-26T12:09:43.800","Зарплата Олени",{"v":1600,"d":"1,600.00₴"},null,"2013-02-13T12:09:43.800","Домашнє господарство","Телебачення",{"v":50,"d":"50.00₴"}]
[null,null,{"$f":"NOW()-70","v":"2012-12-12T12:09:43.800"},"Зарплата Макара",{"v":1300,"d":"1,300.00₴"},null,"2013-02-13T12:09:43.800","Домашнє господарство","Обслуговування/ремонт",{"v":25,"d":"25.00₴"}]
[{"$nulls":6},{"$f":"NOW()-8","v":"2013-02-12T12:09:43.800"},"Домашнє господарство","Кредитна картка 1",{"v":100,"d":"100.00₴"}]
[{"$nulls":6},{"$f":"NOW()-9","v":"2013-02-11T12:09:43.800"},"Розваги","Фільми",{"v":37,"d":"37.00₴"}]
[{"$nulls":6},{"$f":"NOW()-10","v":"2013-02-10T12:09:43.800"},"Їжа","Бакалія",{"v":350,"d":"350.00₴"}]
[{"$nulls":6},{"$f":"NOW()-11","v":"2013-02-09T12:09:43.800"},"Їжа","Харчування",{"v":75,"d":"75.00₴"}]
[{"$nulls":6},{"$f":"NOW()-12","v":"2013-02-08T12:09:43.800"},"Діти","Гроші на обід",{"v":150,"d":"150.00₴"}]
[{"$nulls":6},{"$f":"NOW()-13","v":"2013-02-07T12:09:43.800"},"Інвестиційний рахунок","Заощадження",{"v":250,"d":"250.00₴"}]
[{"$nulls":6},{"$f":"NOW()-14","v":"2013-02-06T12:09:43.800"},"Інвестиційний рахунок","Інвестиційний рахунок",{"v":250,"d":"250.00₴"}]
[{"$nulls":6},{"$f":"NOW()-15","v":"2013-02-05T12:09:43.800"},"Особисте","Спорт- або фітнес-клуб",{"v":100,"d":"100.00₴"}]
[{"$nulls":6},{"$f":"NOW()-16","v":"2013-02-04T12:09:43.800"},"Домашні улюбленці","Їжа",{"v":50,"d":"50.00₴"}]
[{"$nulls":6},{"$f":"NOW()-20","v":"2013-01-31T12:09:43.800"},"Домашні улюбленці","Догляд",{"v":50,"d":"50.00₴"}]
[{"$nulls":6},{"$f":"NOW()-20","v":"2013-01-31T12:09:43.800"},"Домашні улюбленці","Інше",{"v":50,"d":"50.00₴"}]
[{"$nulls":6},{"$f":"NOW()-25","v":"2013-01-26T12:09:43.800"},"Транспорт","Платіж за машину 1",{"v":300,"d":"300.00₴"}]
[{"$nulls":6},{"$f":"NOW()-25","v":"2013-01-26T12:09:43.800"},"Транспорт","Платіж за машину 2",{"v":350,"d":"350.00₴"}]
[{"$nulls":6},{"$f":"NOW()-25","v":"2013-01-26T12:09:43.800"},"Транспорт","Автомобільне страхування",{"v":50,"d":"50.00₴"}]
[{"$nulls":6},{"$f":"NOW()-30","v":"2013-01-21T12:09:43.800"},"Транспорт","Пальне",{"v":50,"d":"50.00₴"}]
[{"$nulls":6},{"$f":"NOW()-31","v":"2013-01-20T12:09:43.800"},"Транспорт","Пальне",{"v":25,"d":"25.00₴"}]
[{"$nulls":6},{"$f":"NOW()-42","v":"2013-01-09T12:09:43.800"},"Транспорт","Обслуговування/ремонт",{"v":150,"d":"150.00₴"}]
[{"$nulls":6},{"$f":"NOW()-45","v":"2013-01-06T12:09:43.800"},"Домашнє господарство","Іпотека",{"v":5000,"d":"5,000.00₴"}]
[{"$nulls":6},{"$f":"NOW()-50","v":"2013-01-01T12:09:43.800"},"Домашнє господарство","Запчастини",{"v":200,"d":"200.00₴"}]
[{"$nulls":6},{"$f":"NOW()-65","v":"2012-12-17T12:09:43.800"},"Домашнє господарство","Домашній телефон",{"v":100,"d":"100.00₴"}]
[{"$nulls":6},{"$f":"NOW()-70","v":"2012-12-12T12:09:43.800"},"Домашнє господарство","Сміття",{"v":50,"d":"50.00₴"}]
[{"$nulls":6},{"$f":"NOW()-75","v":"2012-12-07T12:09:43.800"},"Домашнє господарство","Іпотека",{"v":1000,"d":"1,000.00₴"}]
[{"$nulls":6},{"$f":"NOW()-78","v":"2012-12-04T12:09:43.800"},"Розваги","Фільми",{"v":75,"d":"75.00₴"}]

{"sheet":"Бюджетний звіт","index":2,"n_rows":24,"n_cols":8,"rows_kept":24}
[]
[null,null,"Двотижневий домашній бюджет",{"$nulls":4},"БЮДЖЕТНИЙ ЗВІТ"]
{"$rows_empty":10}
[null,null,"ВИТРАТИ",null,null,"ПІДСУМКИ ЗА КАТЕГОРІЯМИ"]
[]
[null,null,"КАТЕГОРІЯ","РАЗОМ"]
[null,null,"Діти",{"v":150,"d":"150₴"}]
[null,null,"Домашнє господарство",{"v":7880,"d":"7,880₴"}]
[null,null,"Домашні улюбленці",{"v":150,"d":"150₴"}]
[null,null,"Їжа",{"v":425,"d":"425₴"}]
[null,null,"Інвестиційний рахунок",{"v":500,"d":"500₴"}]
[null,null,"Особисте",{"v":100,"d":"100₴"}]
[null,null,"Розваги",{"v":112,"d":"112₴"}]
[null,null,"Транспорт",{"v":925,"d":"925₴"}]
[null,null,"УСЬОГО",{"v":10242,"d":"10,242₴"}]

{"sheet":"Списки даних","index":3,"n_rows":20,"n_cols":14,"rows_kept":20}
[]
[null,null,"Двотижневий домашній бюджет",{"$nulls":10},"СПИСКИ ДАНИХ"]
[]
[]
[null,null,"НАСТРОЙКА         Дані за категоріями нижче передаються до розкривних списків у таблиці «Витрати» на аркуші «Витрати й дохід». Змініть назви категорій або описи під кожною з категорій, щоб змінити списки."]
[]
[null,null,"Домашнє господарство","Розваги","Їжа","Подарунки/внески","Діти","Інвестиційний рахунок","Медицина","Інше","Особисте","Домашні улюбленці","Податки","Транспорт"]
[null,null,"Іпотека","Фільми","Бакалія","Доброчинність 1","Білизна","Пенсійний рахунок","Лікар або терапевт","Інше","Одяг","Їжа","Державний","Платіж за машину 1"]
[null,null,"Електроенергія","Відео/фільми","Харчування","Доброчинність 2","Іграшки та ігри","Заощадження","Страхування","Організаційні збори","Перукарня/манікюр","Запчастини","Регіональний","Платіж за машину 2"]
[null,null,"Водопостачання та каналізація","Музика",null,"Доброчинність 3","Гроші на обід","Поточний",null,null,"Хімчистка","Медицина","Місцевий","Автомобільне страхування"]
[null,null,"Сміття","Концерти/театр",null,"Подарунок","Збори і мито","Пенсія",null,null,"Спорт- або фітнес-клуб","Догляд","Інше","Права/реєстрація"]
[null,null,"Мобільний телефон","Спортивні події",null,null,"Шкільне приладдя","Інвестиційний рахунок",null,null,"Покупки","Інше","Адвокат","Пальне"]
[null,null,"Домашній телефон","Інше",null,null,"Інше","ВУЗ",null,null,"Інше",null,"Допомога дитині","Обслуговування/ремонт"]
[null,null,"Інтернет",{"$nulls":3},"Пральня","Позики",{"$nulls":4},"Аліменти","Громадський транспорт"]
[null,null,"Телебачення",{"$nulls":4},"Позики на навчання",{"$nulls":4},"Інше"]
[null,null,"Обслуговування/ремонт"]
[null,null,"Запчастини"]
[null,null,"Кабельне ТБ/Інтернет/телефон"]
[null,null,"Кредитна картка 1"]
[null,null,"Кредитна картка 2"]

{"sheet":"Зведена таблиця категорій","index":4,"n_rows":16,"n_cols":14,"rows_kept":16,"hidden":true}
[]
[null,null,"Двотижневий домашній бюджет",{"$nulls":10},"ЗВЕДЕНА ТАБЛИЦЯ ЗА КАТЕГОРІЯМИ"]
[]
[]
[null,"Ця зведена таблиця використовується як джерело даних для зведеної діаграми підсумків за "]
[]
[null,null,"Підписи рядків","Сума з СУМА"]
[null,null,"Діти",{"v":150,"d":"150₴"}]
[null,null,"Домашнє господарство",{"v":7880,"d":"7,880₴"}]
[null,null,"Домашні улюбленці",{"v":150,"d":"150₴"}]
[null,null,"Їжа",{"v":425,"d":"425₴"}]
[null,null,"Інвестиційний рахунок",{"v":500,"d":"500₴"}]
[null,null,"Особисте",{"v":100,"d":"100₴"}]
[null,null,"Розваги",{"v":112,"d":"112₴"}]
[null,null,"Транспорт",{"v":925,"d":"925₴"}]
[null,null,"Загальний підсумок",{"v":10242,"d":"10,242₴"}]